fUSD/lending_fUSD_20250617
["ID","MTS","AMOUNT","RATE_DAILY","PERIOD"]
[366215745,1750126251418,-493.15058517,0.00016779,2]
[366215746,1750126251426,-490.80946409,0.00016779,2]
[366215747,1750126251436,-630.26101984,0.00016779,2]
[366215748,1750126251445,-492.36979039,0.00016779,2]
[366215749,1750126251454,-490.0,0.00016779,2]
[366215750,1750126251463,-493.59394202,0.00016779,2]
[366215751,1750126251472,-606.41033403,0.00016779,2]
[366215752,1750126251481,-490.0,0.00016779,2]
[366215753,1750126251491,-491.63145842,0.00016779,2]
[366215754,1750126251503,-4799.83,0.00016779,2]
[366215755,1750126251512,-493.0362236,0.00016779,2]
[366215756,1750126251521,-495.22655542,0.00016779,2]
[366215757,1750126251531,-490.0,0.00016779,2]
[366215758,1750126251540,-498.79485949,0.00016779,2]
[366215759,1750126251549,-493.8312927,0.00016779,2]
[366215760,1750126251558,-490.0,0.00016779,2]
[366215761,1750126251567,-151.0,0.00016779,2]
[366215762,1750126251577,-1602.97,0.00016779,2]
[366215763,1750126251586,-607.71445399,0.00016779,2]
[366215764,1750126251595,-492.63601274,0.00016779,2]
[366215765,1750126251605,-490.0,0.00016779,2]
[366215766,1750126251615,-490.83719814,0.00016779,2]
[366215767,1750126251624,-437.48338762,0.00016779,2]
[366215768,1750126251634,-492.77734135,0.00016779,2]
[366215769,1750126251643,-493.45096533,0.00016779,2]
[366215770,1750126251652,-490.0,0.00016779,2]
[366215771,1750126251662,-490.0,0.00016779,2]
[366215772,1750126251674,-490.0,0.00016779,2]
[366215773,1750126251684,-272.28994849,0.00016779,2]
[366215774,1750126251693,-490.0,0.00016779,2]
[366215775,1750126251702,-494.2172343,0.00016779,2]
[366215776,1750126251712,-743.87,0.00016779,2]
[366215777,1750126251722,-494.48930058,0.00016779,2]
[366215778,1750126251731,-494.17505602,0.00016779,2]
[366215779,1750126251741,-1026.9702921,0.00016779,2]
[366215780,1750126251755,-494.81653031,0.00016779,2]
[366215781,1750126251764,-439.73988799,0.00016779,2]
[366215782,1750126251775,-490.0,0.00016779,2]
[366215783,1750126251785,-435.68611812,0.00016779,2]
[366215784,1750126251794,-264.22465736,0.00016779,2]
[366215785,1750126251804,-574.47154549,0.00016779,2]
[366215786,1750126251814,-499.31295544,0.00016779,2]
[366215787,1750126251823,-494.57811249,0.00016779,2]
[366215788,1750126251832,-151.0,0.00016779,2]
[366215789,1750126251841,-151.0,0.00016779,2]
[366215790,1750126251851,-565.30092007,0.00016779,2]
[366215791,1750126251861,-496.76875827,0.00016779,2]
[366215792,1750126251871,-490.0,0.00016779,2]
[366215793,1750126251881,-563.16281611,0.00016779,2]
[366215794,1750126251890,-490.0,0.00016779,2]
[366215795,1750126251900,-490.0,0.00016779,2]
[366215796,1750126251909,-490.0,0.00016779,2]
[366215797,1750126251918,-494.47941158,0.00016779,2]
[366215798,1750126251928,-491.45,0.00016779,2]
[366215799,1750126251939,-491.96036429,0.00016779,2]
[366215800,1750126251948,-404.47802536,0.00016779,2]
[366215801,1750126251957,-493.20458553,0.00016779,2]
[366215802,1750126251967,-500.3575264,0.00016779,2]
[366215803,1750126251976,-490.0,0.00016779,2]
[366215804,1750126251985,-491.16960141,0.00016779,2]
[366215805,1750126251995,-430.25514672,0.00016779,2]
[366215806,1750126252006,-490.0,0.00016779,2]
[366215807,1750126252016,-629.2425794,0.00016779,2]
[366215808,1750126252025,-490.0,0.00016779,2]
[366215809,1750126252033,-638.1274872,0.00016779,2]
[366215810,1750126252043,-492.83234575,0.00016779,2]
[366215811,1750126252053,-490.0,0.00016779,2]
[366215812,1750126252062,-490.0,0.00016779,2]
[366215813,1750126252072,-491.75721231,0.00016779,2]
[366215814,1750126252081,-497.52750601,0.00016779,2]
[366215815,1750126252091,-490.0,0.00016779,2]
[366215816,1750126252101,-151.0,0.0001678,2]
[366215817,1750126252110,-151.0,0.0001678,2]
[366215818,1750126252120,-151.0,0.0001678,2]
[366215819,1750126252129,-151.0,0.0001678,2]
[366215820,1750126252139,-151.0,0.0001678,2]
[366215821,1750126252148,-151.0,0.0001678,2]
[366215822,1750126252157,-3309.63,0.0001678,2]
[366215823,1750126252166,-490.0,0.0001678,2]
[366215824,1750126252176,-490.0,0.0001678,2]
[366215825,1750126252185,-490.0,0.0001678,2]
[366215826,1750126252195,-490.0,0.0001678,2]
[366215827,1750126252205,-490.0,0.0001678,2]
[366215828,1750126252214,-1136.19,0.0001678,2]
[366215829,1750126252224,-2474.9,0.0001678,2]
[366215830,1750126252233,-427.217048,0.0001678,2]
[366215831,1750126252243,-681.221422,0.0001678,2]
[366215832,1750126252253,-427.217048,0.0001678,2]
[366215833,1750126252262,-681.221422,0.0001678,2]
[366215834,1750126252272,-503.174278,0.00016781,2]
[366215835,1750126252282,-490.0,0.00016781,2]
[366215836,1750126252291,-503.64134487,0.00016781,2]
[366215837,1750126252301,-491.38388057,0.00016781,2]
[366215838,1750126252310,-492.72309452,0.00016781,2]
[366215839,1750126252320,-250.34691108,0.00016781,2]
[366215840,1750126252329,-490.0,0.00016781,2]
[366215841,1750126252338,-490.0,0.00016781,2]
[366215842,1750126252347,-490.0,0.00016781,2]
[366215843,1750126252357,-490.0,0.00016781,2]
[366215844,1750126252366,-490.0,0.00016781,2]
[366215845,1750126252375,-490.0,0.00016781,2]
[366215846,1750126252385,-490.0,0.00016781,2]
[366215847,1750126252394,-490.0,0.00016781,2]
[366215848,1750126252403,-490.0,0.00016781,2]
[366215849,1750126252412,-490.0,0.00016781,2]
[366215850,1750126252421,-580.74,0.00016781,2]
[366215851,1750126252431,-490.0,0.00016781,2]
[366215852,1750126252440,-154.0,0.00016781,2]
[366215853,1750126252449,-490.0,0.00016781,2]
[366215854,1750126252458,-160.22221431,0.00016781,2]
[366215855,1750126252468,-492.34740054,0.00016781,2]
[366215856,1750126252476,-490.0,0.00016781,2]
[366215857,1750126252486,-543.1866121,0.00016781,2]
[366215858,1750126252495,-490.0,0.00016781,2]
[366215859,1750126252506,-207.27,0.00016781,2]
[366215860,1750126252515,-490.9883823,0.00016781,2]
[366215861,1750126252524,-262.35450551,0.00016781,2]
[366215862,1750126252533,-490.0,0.00016781,2]
[366215863,1750126252543,-492.44865513,0.00016781,2]
[366215864,1750126252552,-490.0,0.00016781,2]
[366215865,1750126252561,-490.0,0.00016781,2]
[366215866,1750126252570,-490.0,0.00016781,2]
[366215867,1750126252579,-500.0,0.00016781,2]
[366215868,1750126252589,-500.0,0.00016781,2]
[366215869,1750126252599,-200.0,0.00016781,2]
[366215870,1750126252608,-410.75496622,0.00016781,2]
[366215871,1750126252617,-1958.41,0.00016781,2]
[366215872,1750126252626,-738.31,0.00016781,2]
[366215873,1750126252635,-629.85901445,0.00016781,2]
[366215874,1750126252644,-1763.74,0.00016781,2]
[366215875,1750126252654,-151.0,0.00016781,2]
[366215876,1750126252663,-151.0,0.00016781,2]
[366215877,1750126252674,-300.0,0.00016781,2]
[366215878,1750126252683,-151.33231189,0.00016781,2]
[366215879,1750126252693,-707.11399684,0.00016781,2]
[366215880,1750126252702,-151.0,0.00016781,2]
[366215881,1750126252711,-151.0,0.00016781,2]
[366215882,1750126252721,-490.75764679,0.00016782,2]
[366215883,1750126252730,-490.0,0.00016782,2]
[366215884,1750126252739,-491.6715014,0.00016782,2]
[366215885,1750126252752,-490.3812594,0.00016782,2]
[366215886,1750126252762,-491.31728082,0.00016782,2]
[366215887,1750126252771,-490.69119135,0.00016782,2]
[366215888,1750126252780,-490.69083551,0.00016782,2]
[366215889,1750126252789,-491.26084314,0.00016782,2]
[366215890,1750126252799,-491.23196367,0.00016782,2]
[366215891,1750126252808,-490.44731501,0.00016782,2]
[366215892,1750126252818,-490.6268661,0.00016782,2]
[366215893,1750126252827,-490.45405451,0.00016782,2]
[366215894,1750126252836,-490.19835867,0.00016782,2]
[366215895,1750126252845,-151.0,0.00016782,2]
[366215896,1750126252855,-151.0,0.00016782,2]
[366215897,1750126252864,-151.0,0.00016782,2]
[366215898,1750126252873,-251.246621,0.00016782,2]
[366215899,1750126252883,-251.246621,0.00016782,2]
[366215900,1750126252892,-150.0,0.00016787,2]
[366215901,1750126252901,-1687.0,0.00016793,2]
[366215902,1750126252911,-258.84870797,0.00016797,2]
[366215903,1750126252919,-1000.0,0.000168,2]
[366215904,1750126252928,-1000.0,0.000168,3]
[366215905,1750126252937,-1000.0,0.000168,4]
[366215906,1750126252947,-941.0,0.000168,6]
[366215907,1750126252956,-161.69580899,0.000168,2]
[366215908,1750126252965,-915.08279761,0.00016801,2]
[366215909,1750126252975,-490.0,0.00016827,2]
[366215910,1750126252983,-490.0,0.00016827,2]
[366215911,1750126252992,-490.0,0.00016827,2]
[366215912,1750126253002,-490.0,0.00016827,2]
[366215913,1750126253012,-490.0,0.00016827,2]
[366215914,1750126253021,-490.0,0.00016827,2]
[366215915,1750126253030,-490.0,0.00016827,2]
[366215916,1750126253039,-490.0,0.00016827,2]
[366215917,1750126253048,-490.0,0.00016827,2]
[366215918,1750126253057,-490.0,0.00016827,2]
[366215919,1750126253066,-2126.74,0.00016827,2]
[366215920,1750126253076,-490.0,0.00016827,2]
[366215921,1750126253085,-603.98,0.00016827,2]
[366215922,1750126253095,-1516.17,0.00016827,2]
[366215923,1750126253104,-490.0,0.00016827,2]
[366215924,1750126253113,-490.0,0.00016827,2]
[366215925,1750126253123,-490.0,0.00016827,2]
[366215926,1750126253132,-624.03132176,0.00016827,2]
[366215927,1750126253141,-1461.93,0.00016827,2]
[366215928,1750126253151,-490.0,0.00016827,2]
[366215929,1750126253161,-186.5267,0.00016827,2]
[366215930,1750126253170,-490.0,0.00016827,2]
[366215931,1750126253179,-490.0,0.00016827,2]
[366215932,1750126253188,-490.0,0.00016827,2]
[366215933,1750126253198,-490.0,0.00016827,2]
[366215934,1750126253207,-902.69,0.00016827,2]
[366215935,1750126253216,-175.943807,0.00016827,2]
[366215936,1750126253226,-490.0,0.00016827,2]
[366215937,1750126253235,-490.0,0.00016827,2]
[366215938,1750126253245,-490.0,0.00016827,2]
[366215939,1750126253256,-490.0,0.00016828,2]
[366215940,1750126253265,-193.0,0.00016842,2]
[366215941,1750126253274,-674.41870636,0.00016844,2]
[366215942,1750126253283,-258.84870797,0.00016848,2]
[366215943,1750126253293,-500.0,0.00016863,2]
[366215944,1750126253302,-2000.0,0.00016864,2]
[366215945,1750126253310,-500.0,0.00016864,2]
[366215946,1750126253319,-200.0,0.00016864,2]
[366215947,1750126253328,-490.0,0.00016864,2]
[366215948,1750126253337,-490.0,0.00016864,2]
[366215949,1750126253345,-151.0,0.00016864,2]
[366215950,1750126253354,-151.0,0.00016864,2]
[366215951,1750126253363,-490.0,0.00016864,2]
[366215952,1750126253372,-490.0,0.00016864,2]
[366215953,1750126253381,-813.7,0.00016864,2]
[366215954,1750126253391,-1619.55,0.00016864,2]
[366215955,1750126253400,-151.0,0.00016864,2]
[366215956,1750126253409,-151.0,0.00016864,2]
[366215957,1750126253418,-490.0,0.00016864,2]
[366215958,1750126253427,-490.0,0.00016864,2]
[366215959,1750126253437,-151.0,0.00016864,2]
[366215960,1750126253446,-490.0,0.00016864,2]
[366215961,1750126253455,-541.08078613,0.00016864,2]
[366215962,1750126253465,-490.0,0.00016864,2]
[366215963,1750126253474,-699.09,0.00016864,2]
[366215964,1750126253484,-490.0,0.00016864,2]
[366215965,1750126253494,-611.82,0.00016864,2]
[366215966,1750126253503,-576.41,0.00016864,2]
[366215967,1750126253513,-1875.32,0.00016864,2]
[366215968,1750126253522,-869.42,0.00016864,2]
[366215969,1750126253533,-490.0,0.00016864,2]
[366215970,1750126253543,-316.06105541,0.00016864,2]
[366215971,1750126253554,-258.84870797,0.000169,2]
[366215972,1750126253564,-179.69069199,0.000169,2]
[366215973,1750126253573,-376.0,0.000169,2]
[366215974,1750126253583,-769.0,0.000169,2]
[366215975,1750126253592,-189.38140781,0.000169,2]
[366215976,1750126253602,-160.65530736,0.000169,2]
[366215977,1750126253612,-237.0,0.000169,2]
[366215978,1750126253621,-161.69580899,0.000169,2]
[366215979,1750126253631,-1731.0622828,0.000169,2]
[366215980,1750126253641,-202.92666263,0.000169,2]
[366215981,1750126253650,-1120.0,0.000169,2]
[366215982,1750126253659,-490.0,0.00016942,2]
[366215983,1750126253669,-490.0,0.00016942,2]
[366215984,1750126253681,-490.0,0.00016942,2]
[366215985,1750126253691,-490.0,0.00016942,2]
[366215986,1750126253700,-600.44,0.00016942,2]
[366215987,1750126253709,-490.0,0.00016942,2]
[366215988,1750126253720,-1276.93,0.00016942,2]
[366215989,1750126253729,-490.0,0.00016942,2]
[366215990,1750126253739,-490.0,0.00016942,2]
[366215991,1750126253749,-519.53542438,0.00016942,2]
[366215992,1750126253761,-490.0,0.00016942,2]
[366215993,1750126253770,-807.84,0.00016942,2]
[366215994,1750126253779,-575.47,0.00016942,2]
[366215995,1750126253789,-1038.03,0.00016942,2]
[366215996,1750126253798,-490.0,0.00016942,2]
[366215997,1750126253807,-490.0,0.00016942,2]
[366215998,1750126253816,-539.03,0.00016944,2]
[366215999,1750126253826,-490.0,0.00016944,2]
[366216000,1750126253835,-490.0,0.00016944,2]
[366216001,1750126253844,-629.91614937,0.00016944,2]
[366216002,1750126253854,-443.6293682,0.00016944,2]
[366216003,1750126253864,-490.0,0.00016944,2]
[366216004,1750126253873,-490.0,0.00016944,2]
[366216005,1750126253882,-490.0,0.00016944,2]
[366216006,1750126253892,-490.0,0.00016944,2]
[366216007,1750126253902,-490.0,0.00016944,2]
[366216008,1750126253912,-579.57458598,0.00016944,2]
[366216009,1750126253922,-490.0,0.00016944,2]
[366216010,1750126253932,-490.0,0.00016944,2]
[366216011,1750126253942,-413.26137016,0.00016944,2]
[366216012,1750126253951,-490.0,0.00016944,2]
[366216013,1750126253961,-490.0,0.00016944,2]
[366216014,1750126253971,-334.94773919,0.00016944,2]
[366216015,1750126253980,-490.0,0.00016944,2]
[366216016,1750126253990,-490.0,0.00016944,2]
[366216017,1750126254000,-490.0,0.00016944,2]
[366216018,1750126254011,-341.91152762,0.00016944,2]
[366216019,1750126254020,-490.0,0.00016944,2]
[366216020,1750126254030,-490.0,0.00016944,2]
[366216021,1750126254039,-490.0,0.00016944,2]
[366216022,1750126254049,-490.0,0.00016944,2]
[366216023,1750126254059,-490.0,0.00016944,2]
[366216024,1750126254069,-490.0,0.00016944,2]
[366216025,1750126254078,-490.0,0.00016944,2]
[366216026,1750126254088,-490.0,0.00016944,2]
[366216027,1750126254098,-490.0,0.00016944,2]
[366216028,1750126254108,-490.0,0.00016944,2]
[366216029,1750126254118,-490.0,0.00016944,2]
[366216030,1750126254128,-490.0,0.00016944,2]
[366216031,1750126254138,-490.0,0.00016944,2]
[366216032,1750126254148,-490.0,0.00016944,2]
[366216033,1750126254157,-490.0,0.00016944,2]
[366216034,1750126254168,-490.0,0.00016944,2]
[366216035,1750126254178,-490.0,0.00016944,2]
[366216036,1750126254188,-490.0,0.00016944,2]
[366216037,1750126254198,-490.0,0.00016944,2]
[366216038,1750126254209,-490.0,0.00016944,2]
[366216039,1750126254218,-490.0,0.00016944,2]
[366216040,1750126254228,-490.0,0.00016944,2]
[366216041,1750126254238,-374.4782896,0.00016944,2]
[366216042,1750126254248,-490.0,0.00016944,2]
[366216043,1750126254258,-202.5768583,0.00016944,2]
[366216044,1750126254268,-490.0,0.00016944,2]
[366216045,1750126254278,-503.12760591,0.00016944,2]
[366216046,1750126254288,-231.74545159,0.00016944,2]
[366216047,1750126254298,-490.0,0.00016944,2]
[366216048,1750126254308,-594.93133703,0.00016944,2]
[366216049,1750126254318,-679.22,0.00016944,2]
[366216050,1750126254328,-494.90872648,0.00016944,2]
[366216051,1750126254338,-503.25958339,0.00016944,2]
[366216052,1750126254348,-516.97486382,0.00016944,2]
[366216053,1750126254358,-490.0,0.00016944,2]
[366216054,1750126254369,-495.00984222,0.00016944,2]
[366216055,1750126254379,-490.0,0.00016944,2]
[366216056,1750126254389,-490.0,0.00016944,2]
[366216057,1750126254399,-490.0,0.00016944,2]
[366216058,1750126254409,-490.0,0.00016944,2]
[366216059,1750126254419,-492.48414707,0.00016944,2]
[366216060,1750126254430,-490.0,0.00016944,2]
[366216061,1750126254440,-497.33,0.00016944,2]
[366216062,1750126254449,-497.83939043,0.00016944,2]
[366216063,1750126254460,-490.0,0.00016944,2]
[366216064,1750126254472,-490.0,0.00016944,2]
[366216065,1750126254491,-490.0,0.00016944,2]
[366216066,1750126254511,-339.78903637,0.00016944,2]
[366216067,1750126254522,-490.0,0.00016944,2]
[366216068,1750126254531,-490.0,0.00016944,2]
[366216069,1750126254542,-499.35100961,0.00016944,2]
[366216070,1750126254553,-597.82831619,0.00016944,2]
[366216071,1750126254563,-490.0,0.00016944,2]
[366216072,1750126254573,-491.39367388,0.00016944,2]
[366216073,1750126254585,-491.91608943,0.00016944,2]
[366216074,1750126254597,-490.0,0.00016944,2]
[366216075,1750126254606,-373.36646015,0.00016944,2]
[366216076,1750126254616,-490.0,0.00016944,2]
[366216077,1750126254626,-490.0,0.00016944,2]
[366216078,1750126254636,-490.0,0.00016944,2]
[366216079,1750126254646,-494.08235438,0.00016944,2]
[366216080,1750126254655,-490.0,0.00016944,2]
[366216081,1750126254665,-517.34031964,0.00016944,2]
[366216082,1750126254679,-490.0,0.00016944,2]
[366216083,1750126254689,-496.34211463,0.00016944,2]
[366216084,1750126254699,-490.9852436,0.00016944,2]
[366216085,1750126254709,-490.0,0.00016944,2]
[366216086,1750126254720,-512.44158473,0.00016944,2]
[366216087,1750126254730,-469.60700586,0.00016944,2]
[366216088,1750126254740,-490.0,0.00016944,2]
[366216089,1750126254751,-174.17313172,0.00016944,2]
[366216090,1750126254762,-490.0,0.00016944,2]
[366216091,1750126254772,-490.0,0.00016944,2]
[366216092,1750126254781,-490.0,0.00016944,2]
[366216093,1750126254791,-490.0,0.00016944,2]
[366216094,1750126254800,-497.81059591,0.00016944,2]
[366216095,1750126254810,-271.17,0.00016944,2]
[366216096,1750126254820,-505.00881239,0.00016944,2]
[366216097,1750126254830,-490.0,0.00016944,2]
[366216098,1750126254840,-490.0,0.00016944,2]
[366216099,1750126254850,-490.0,0.00016944,2]
[366216100,1750126254860,-583.47253037,0.00016944,2]
[366216101,1750126254869,-490.0,0.00016944,2]
[366216102,1750126254879,-490.0,0.00016944,2]
[366216103,1750126254889,-506.11714166,0.00016944,2]
[366216104,1750126254898,-486.1425121,0.00016944,2]
[366216105,1750126254908,-495.30336387,0.00016944,2]
[366216106,1750126254918,-503.5313829,0.00016944,2]
[366216107,1750126254928,-490.0,0.00016944,2]
[366216108,1750126254938,-490.66101644,0.00016944,2]
[366216109,1750126254948,-490.0,0.00016944,2]
[366216110,1750126254958,-490.0,0.00016944,2]
[366216111,1750126254968,-496.2102763,0.00016944,2]
[366216112,1750126254977,-495.40821257,0.00016944,2]
[366216113,1750126254988,-493.06102451,0.00016944,2]
[366216114,1750126254997,-492.38872242,0.00016944,2]
[366216115,1750126255007,-498.45017297,0.00016944,2]
[366216116,1750126255017,-490.0,0.00016944,2]
[366216117,1750126255027,-496.87094955,0.00016944,2]
[366216118,1750126255038,-493.4319877,0.00016944,2]
[366216119,1750126255048,-493.60604935,0.00016944,2]
[366216120,1750126255058,-490.0,0.00016944,2]
[366216121,1750126255068,-490.0,0.00016944,2]
[366216122,1750126255078,-490.0,0.00016944,2]
[366216123,1750126255088,-550.64577049,0.00016944,2]
[366216124,1750126255098,-490.0,0.00016944,2]
[366216125,1750126255107,-490.0,0.00016944,2]
[366216126,1750126255118,-174.47260775,0.00016944,2]
[366216127,1750126255128,-490.0,0.00016944,2]
[366216128,1750126255138,-490.0,0.00016944,2]
[366216129,1750126255148,-490.0,0.00016944,2]
[366216130,1750126255158,-492.60721744,0.00016944,2]
[366216131,1750126255168,-496.82042215,0.00016944,2]
[366216132,1750126255178,-445.42738539,0.00016944,2]
[366216133,1750126255188,-499.17837491,0.00016944,2]
[366216134,1750126255198,-490.0,0.00016944,2]
[366216135,1750126255209,-490.0,0.00016944,2]
[366216136,1750126255222,-490.0,0.00016944,2]
[366216137,1750126255232,-493.59584978,0.00016944,2]
[366216138,1750126255243,-490.0,0.00016944,2]
[366216139,1750126255254,-490.0,0.00016944,2]
[366216140,1750126255264,-493.8586721,0.00016944,2]
[366216141,1750126255274,-490.0,0.00016944,2]
[366216142,1750126255285,-490.0,0.00016944,2]
[366216143,1750126255296,-490.0,0.00016944,2]
[366216144,1750126255306,-602.4953364,0.00016944,2]
[366216145,1750126255316,-494.18556039,0.00016944,2]
[366216146,1750126255327,-490.0,0.00016944,2]
[366216147,1750126255338,-490.0,0.00016944,2]
[366216148,1750126255348,-491.85102208,0.00016944,2]
[366216149,1750126255358,-493.98342637,0.00016944,2]
[366216150,1750126255368,-490.0,0.00016944,2]
[366216151,1750126255378,-497.26180475,0.00016944,2]
[366216152,1750126255388,-490.0,0.00016944,2]
[366216153,1750126255398,-490.0,0.00016944,2]
[366216154,1750126255409,-490.0,0.00016944,2]
[366216155,1750126255418,-1012.09493572,0.00016944,2]
[366216156,1750126255429,-490.0,0.00016944,2]
[366216157,1750126255439,-437.43650577,0.00016944,2]
[366216158,1750126255449,-490.0,0.00016944,2]
[366216159,1750126255459,-490.0,0.00016944,2]
[366216160,1750126255469,-513.22684606,0.00016944,2]
[366216161,1750126255479,-500.15251485,0.00016944,2]
[366216162,1750126255489,-492.81519064,0.00016944,2]
[366216163,1750126255499,-490.0,0.00016944,2]
[366216164,1750126255510,-499.20877176,0.00016944,2]
[366216165,1750126255520,-373.45723073,0.00016944,2]
[366216166,1750126255530,-492.64850027,0.00016944,2]
[366216167,1750126255539,-502.65231468,0.00016944,2]
[366216168,1750126255549,-490.0,0.00016944,2]
[366216169,1750126255559,-599.56044534,0.00016944,2]
[366216170,1750126255570,-594.3517725,0.00016944,2]
[366216171,1750126255580,-151.33711592,0.00016944,2]
[366216172,1750126255590,-493.94387102,0.00016944,2]
[366216173,1750126255599,-490.0,0.00016944,2]
[366216174,1750126255609,-490.0,0.00016944,2]
[366216175,1750126255619,-490.0,0.00016944,2]
[366216176,1750126255629,-552.7319309,0.00016944,2]
[366216177,1750126255638,-446.3706322,0.00016944,2]
[366216178,1750126255648,-151.0,0.00016944,2]
[366216179,1750126255658,-490.0,0.00016944,2]
[366216180,1750126255668,-151.0,0.00016944,2]
[366216181,1750126255681,-490.0,0.00016944,2]
[366216182,1750126255691,-594.28150382,0.00016944,2]
[366216183,1750126255700,-490.0,0.00016944,2]
[366216184,1750126255710,-182.46431161,0.00016944,2]
[366216185,1750126255721,-410.56062152,0.00016944,2]
[366216186,1750126255731,-490.0,0.00016944,2]
[366216187,1750126255741,-490.0,0.00016944,2]
[366216188,1750126255753,-151.0,0.00016944,2]
[366216189,1750126255764,-628.14758863,0.00016944,2]
[366216190,1750126255773,-490.0,0.00016944,2]
[366216191,1750126255783,-151.0,0.00016944,2]
[366216192,1750126255793,-490.0,0.00016944,2]
[366216193,1750126255803,-563.55,0.00016944,2]
[366216194,1750126255812,-490.0,0.00016944,2]
[366216195,1750126255822,-490.0,0.00016944,2]
[366216196,1750126255832,-735.87,0.00016944,2]
[366216197,1750126255842,-635.55,0.00016944,2]
[366216198,1750126255852,-490.0,0.00016944,2]
[366216199,1750126255863,-490.0,0.00016944,2]
[366216200,1750126255873,-490.0,0.00016944,2]
[366216201,1750126255883,-784.01,0.00016944,2]
[366216202,1750126255893,-490.0,0.00016944,2]
[366216203,1750126255903,-521.66367567,0.00016944,2]
[366216204,1750126255913,-599.74366378,0.00016944,2]
[366216205,1750126255923,-490.0,0.00016944,2]
[366216206,1750126255932,-490.0,0.00016944,2]
[366216207,1750126255942,-268.84,0.00016944,2]
[366216208,1750126255952,-490.0,0.00016944,2]
[366216209,1750126255962,-160.22213998,0.00016944,2]
[366216210,1750126255974,-501.91962517,0.00016944,2]
[366216211,1750126255983,-490.0,0.00016944,2]
[366216212,1750126255993,-151.0,0.00016944,2]
[366216213,1750126256003,-490.0,0.00016944,2]
[366216214,1750126256014,-490.0,0.00016944,2]
[366216215,1750126256025,-490.0,0.00016944,2]
[366216216,1750126256035,-490.0,0.00016944,2]
[366216217,1750126256045,-155.542847,0.00016944,2]
[366216218,1750126256055,-490.0,0.00016944,2]
[366216219,1750126256066,-490.0,0.00016944,2]
[366216220,1750126256076,-490.0,0.00016944,2]
[366216221,1750126256085,-490.0,0.00016944,2]
[366216222,1750126256095,-5697.88,0.00016944,2]
[366216223,1750126256106,-490.0,0.00016944,2]
[366216224,1750126256115,-490.0,0.00016944,2]
[366216225,1750126256126,-572.56149452,0.00016944,2]
[366216226,1750126256138,-746.19,0.00016944,2]
[366216227,1750126256148,-490.0,0.00016944,2]
[366216228,1750126256159,-448.73103444,0.00016944,2]
[366216229,1750126256169,-269.06904992,0.00016944,2]
[366216230,1750126256180,-490.0,0.00016944,2]
[366216231,1750126256190,-490.0,0.00016944,2]
[366216232,1750126256201,-490.0,0.00016944,2]
[366216233,1750126256212,-151.0,0.00016944,2]
[366216234,1750126256222,-237.01018832,0.00016944,2]
[366216235,1750126256233,-490.0,0.00016944,2]
[366216236,1750126256243,-151.0,0.00016944,2]
[366216237,1750126256253,-490.0,0.00016944,2]
[366216238,1750126256265,-332.62243352,0.00016944,2]
[366216239,1750126256535,-490.0,0.00016944,2]
[366216240,1750126256559,-490.0,0.00016944,2]
[366216241,1750126256569,-490.0,0.00016944,2]
[366216242,1750126256579,-1131.16,0.00016944,2]
[366216243,1750126256589,-490.0,0.00016944,2]
[366216244,1750126256598,-490.0,0.00016944,2]